[Event "Live Chess"]
[Site "Chess.com"]
[Date "2021.02.10"]
[Round "1"]
[White "Kondsaga"]
[Black "AlexanderL"]
[Result "0-1"]
[CurrentPosition "8/8/p7/1p1p4/1P1P2p1/P7/5k2/7K w - -"]
[Timezone "UTC"]
[ECO "C01"]
[ECOUrl "https://www.chess.com/openings/French-Defense-Exchange-Variation-3...exd5-4.Nf3"]
[UTCDate "2021.02.10"]
[UTCTime "02:30:19"]
[WhiteElo "2004"]
[BlackElo "2738"]
[TimeControl "2100+2"]
[Termination "AlexanderL won by resignation"]
[StartTime "02:30:19"]
[EndDate "2021.02.10"]
[EndTime "03:08:37"]
[Link "https://www.chess.com/live/game/6507730956"]

1. e4 {[%clk 0:34:52.9]} 1... e6 {[%clk 0:34:58.7]} 2. d4 {[%clk 0:34:49.8]} 2... d5 {[%clk 0:34:59.5]} 3. exd5 {[%clk 0:34:48.5]} 3... exd5 {[%clk 0:35:00.1]} 4. Nf3 {[%clk 0:34:45.6]} 4... Nc6 {[%clk 0:33:01.9]} 5. c3 {[%clk 0:34:17.4]} 5... Bd6 {[%clk 0:32:14.2]} 6. Bd3 {[%clk 0:34:14.7]} 6... Nge7 {[%clk 0:32:08.6]} 7. Qc2 {[%clk 0:34:01.1]} 7... Bg4 {[%clk 0:32:01.3]} 8. Bg5 {[%clk 0:32:37.3]} 8... Bxf3 {[%clk 0:31:49.8]} 9. gxf3 {[%clk 0:32:36.9]} 9... Qd7 {[%clk 0:31:48.9]} 10. Nd2 {[%clk 0:32:08.9]} 10... O-O-O {[%clk 0:31:37.5]} 11. O-O-O {[%clk 0:31:35.7]} 11... Rde8 {[%clk 0:31:30.9]} 12. Bh4 {[%clk 0:31:07.2]} 12... Bf4 {[%clk 0:30:53.1]} 13. Rhg1 {[%clk 0:29:44.3]} 13... g6 {[%clk 0:30:41.9]} 14. Bg3 {[%clk 0:28:00.5]} 14... Qd6 {[%clk 0:30:23.5]} 15. Kb1 {[%clk 0:27:43.4]} 15... Nd8 {[%clk 0:30:04.1]} 16. c4 {[%clk 0:27:12.7]} 16... Ne6 {[%clk 0:29:48.9]} 17. Nb3 {[%clk 0:26:09.5]} 17... dxc4 {[%clk 0:29:43.2]} 18. Bxc4 {[%clk 0:25:50.7]} 18... Nd5 {[%clk 0:29:34.6]} 19. Nc5 {[%clk 0:23:47.3]} 19... Bxg3 {[%clk 0:29:32.2]} 20. fxg3 {[%clk 0:23:17.8]} 20... c6 {[%clk 0:27:42.1]} 21. Qb3 {[%clk 0:22:00]} 21... Re7 {[%clk 0:27:02]} 22. Nxe6 {[%clk 0:20:22.8]} 22... Rxe6 {[%clk 0:26:47.3]} 23. Rge1 {[%clk 0:18:50.3]} 23... Rhe8 {[%clk 0:26:45]} 24. Rxe6 {[%clk 0:18:20.3]} 24... Rxe6 {[%clk 0:26:46.9]} 25. Bxd5 {[%clk 0:18:07.7]} 25... Qxd5 {[%clk 0:26:45.8]} 26. Qxd5 {[%clk 0:18:06.1]} 26... cxd5 {[%clk 0:26:47.7]} 27. Rd2 {[%clk 0:17:56.3]} 27... Re3 {[%clk 0:26:36.1]} 28. f4 {[%clk 0:17:49.5]} 28... Kd7 {[%clk 0:26:30.1]} 29. Kc2 {[%clk 0:17:46.5]} 29... Ke6 {[%clk 0:26:24]} 30. Rd3 {[%clk 0:17:33.5]} 30... Re2+ {[%clk 0:25:01.7]} 31. Rd2 {[%clk 0:17:32]} 31... Rxd2+ {[%clk 0:24:57.3]} 32. Kxd2 {[%clk 0:17:31.7]} 32... Kf5 {[%clk 0:24:59.2]} 33. Ke3 {[%clk 0:17:18.4]} 33... Kg4 {[%clk 0:24:49.9]} 34. Kf2 {[%clk 0:17:11.8]} 34... Kh3 {[%clk 0:24:50.7]} 35. Kg1 {[%clk 0:17:09.3]} 35... h5 {[%clk 0:24:34.1]} 36. b4 {[%clk 0:15:21.4]} 36... b5 {[%clk 0:24:32.5]} 37. Kh1 {[%clk 0:14:42.4]} 37... h4 {[%clk 0:24:31.7]} 38. gxh4 {[%clk 0:14:40]} 38... Kxh4 {[%clk 0:24:33.6]} 39. f5 {[%clk 0:14:07.8]} 39... g5 {[%clk 0:24:28.7]} 40. Kg2 {[%clk 0:13:44.7]} 40... Kg4 {[%clk 0:24:24.9]} 41. f6 {[%clk 0:13:33.4]} 41... Kf5 {[%clk 0:24:24.1]} 42. Kf3 {[%clk 0:12:56]} 42... Kxf6 {[%clk 0:24:21.2]} 43. Kg4 {[%clk 0:12:52.3]} 43... Kg6 {[%clk 0:24:21.5]} 44. h3 {[%clk 0:12:32.7]} 44... f5+ {[%clk 0:24:23.4]} 45. Kf3 {[%clk 0:12:27.7]} 45... Kh5 {[%clk 0:24:25.3]} 46. Kg3 {[%clk 0:12:13.5]} 46... f4+ {[%clk 0:24:16.9]} 47. Kf3 {[%clk 0:12:09.5]} 47... Kh4 {[%clk 0:24:18.8]} 48. Kg2 {[%clk 0:12:09.1]} 48... a6 {[%clk 0:24:18.2]} 49. a3 {[%clk 0:11:50.1]} 49... f3+ {[%clk 0:24:20.1]} 50. Kxf3 {[%clk 0:11:50.7]} 50... Kxh3 {[%clk 0:24:21.4]} 51. Kf2 {[%clk 0:11:47.2]} 51... g4 {[%clk 0:24:23.3]} 52. Kg1 {[%clk 0:11:37.4]} 52... Kg3 {[%clk 0:24:23.7]} 53. Kh1 {[%clk 0:11:29.2]} 53... Kf2 {[%clk 0:24:17.1]} 0-1

[Event "Live Chess"]
[Site "Chess.com"]
[Date "2021.02.10"]
[Round "1"]
[White "GGuseinov"]
[Black "Talenuf"]
[Result "1-0"]
[CurrentPosition "1k4nr/2p1q2p/p1Q3p1/1p2P3/1b6/2N1B3/PP3PPP/3R2K1 b - -"]
[Timezone "UTC"]
[ECO "C69"]
[ECOUrl "https://www.chess.com/openings/Ruy-Lopez-Opening-Morphy-Defense-Exchange-Gligoric-Variation-6.d4-Bg4-7.c3"]
[UTCDate "2021.02.10"]
[UTCTime "02:30:41"]
[WhiteElo "2623"]
[BlackElo "1782"]
[TimeControl "2100+2"]
[Termination "GGuseinov won by resignation"]
[StartTime "02:30:41"]
[EndDate "2021.02.10"]
[EndTime "02:52:08"]
[Link "https://www.chess.com/live/game/6507731488"]

1. e4 {[%clk 0:34:56.9]} 1... e5 {[%clk 0:34:57.5]} 2. Nf3 {[%clk 0:34:57.3]} 2... Nc6 {[%clk 0:34:58.2]} 3. Bb5 {[%clk 0:34:57.7]} 3... a6 {[%clk 0:34:58.5]} 4. Bxc6 {[%clk 0:34:58.8]} 4... dxc6 {[%clk 0:34:58.8]} 5. O-O {[%clk 0:35:00.7]} 5... f6 {[%clk 0:34:58.7]} 6. d4 {[%clk 0:35:01.7]} 6... Bg4 {[%clk 0:34:58.9]} 7. c3 {[%clk 0:35:02.5]} 7... exd4 {[%clk 0:33:25.6]} 8. cxd4 {[%clk 0:34:59.3]} 8... Bd6 {[%clk 0:33:05.4]} 9. Qb3 {[%clk 0:34:44.2]} 9... Qc8 {[%clk 0:31:26.9]} 10. e5 {[%clk 0:34:25.9]} 10... Be6 {[%clk 0:30:36]} 11. Qe3 {[%clk 0:34:19.7]} 11... fxe5 {[%clk 0:30:36.5]} 12. dxe5 {[%clk 0:34:00.9]} 12... Be7 {[%clk 0:30:15.8]} 13. Nd4 {[%clk 0:34:00.4]} 13... Bd5 {[%clk 0:30:06.7]} 14. Qg3 {[%clk 0:33:43.5]} 14... g6 {[%clk 0:29:06.1]} 15. Nc3 {[%clk 0:33:30.9]} 15... Qd7 {[%clk 0:26:57.3]} 16. Be3 {[%clk 0:33:13]} 16... O-O-O {[%clk 0:26:43.6]} 17. Rfd1 {[%clk 0:32:46]} 17... Qe8 {[%clk 0:24:53.5]} 18. Qh3+ {[%clk 0:31:23.3]} 18... Kb8 {[%clk 0:24:47.8]} 19. Ne6 {[%clk 0:31:24.1]} 19... Bxe6 {[%clk 0:23:55.9]} 20. Qxe6 {[%clk 0:31:23.5]} 20... Bb4 {[%clk 0:23:08.9]} 21. Rxd8+ {[%clk 0:31:16.9]} 21... Qxd8 {[%clk 0:23:08.9]} 22. Rd1 {[%clk 0:31:16.5]} 22... Qe7 {[%clk 0:22:32]} 23. Qc4 {[%clk 0:31:00.4]} 23... b5 {[%clk 0:19:48.7]} 24. Qxc6 {[%clk 0:30:55.5]} 1-0

[Event "Live Chess"]
[Site "Chess.com"]
[Date "2021.02.10"]
[Round "1"]
[White "twangbio"]
[Black "KyronGriffith"]
[Result "0-1"]
[CurrentPosition "8/8/8/8/1p1p4/pPqK1kb1/P1P5/6B1 w - -"]
[Timezone "UTC"]
[ECO "B33"]
[ECOUrl "https://www.chess.com/openings/Sicilian-Defense-Open-3...cxd4-4.Nxd4-Nf6-5.Nc3"]
[UTCDate "2021.02.10"]
[UTCTime "02:30:24"]
[WhiteElo "1907"]
[BlackElo "2328"]
[TimeControl "2100+2"]
[Termination "KyronGriffith won by checkmate"]
[StartTime "02:30:24"]
[EndDate "2021.02.10"]
[EndTime "03:43:35"]
[Link "https://www.chess.com/live/game/6507731700"]

1. e4 {[%clk 0:34:56.1]} 1... c5 {[%clk 0:34:59.2]} 2. Nf3 {[%clk 0:34:55.2]} 2... Nc6 {[%clk 0:34:58.5]} 3. d4 {[%clk 0:34:54.5]} 3... cxd4 {[%clk 0:34:58.5]} 4. Nxd4 {[%clk 0:34:53.6]} 4... Nf6 {[%clk 0:34:51.2]} 5. Nc3 {[%clk 0:34:53.2]} 5... e6 {[%clk 0:34:38]} 6. Nxc6 {[%clk 0:34:25]} 6... dxc6 {[%clk 0:34:09.3]} 7. Qxd8+ {[%clk 0:33:57.4]} 7... Kxd8 {[%clk 0:34:11.2]} 8. e5 {[%clk 0:33:52.9]} 8... Nd5 {[%clk 0:32:35.3]} 9. Nxd5 {[%clk 0:32:14.3]} 9... cxd5 {[%clk 0:32:13.2]} 10. Be3 {[%clk 0:30:34.2]} 10... Bd7 {[%clk 0:31:26.9]} 11. O-O-O {[%clk 0:28:51]} 11... Kc7 {[%clk 0:31:05.4]} 12. Kb1 {[%clk 0:26:28.2]} 12... b5 {[%clk 0:30:34.7]} 13. Be2 {[%clk 0:22:33.3]} 13... Be7 {[%clk 0:29:43]} 14. Rd2 {[%clk 0:21:11.5]} 14... a5 {[%clk 0:28:56.5]} 15. Rhd1 {[%clk 0:20:23.3]} 15... Bc6 {[%clk 0:28:46.1]} 16. b3 {[%clk 0:18:21.7]} 16... Rhb8 {[%clk 0:27:47.7]} 17. Kb2 {[%clk 0:16:57]} 17... a4 {[%clk 0:27:30.5]} 18. f4 {[%clk 0:15:56.5]} 18... g6 {[%clk 0:25:56.4]} 19. g4 {[%clk 0:14:34.4]} 19... b4 {[%clk 0:24:43.8]} 20. f5 {[%clk 0:13:23.8]} 20... gxf5 {[%clk 0:18:32.2]} 21. gxf5 {[%clk 0:13:12.7]} 21... Rg8 {[%clk 0:17:54.4]} 22. f6 {[%clk 0:12:19.2]} 22... Bf8 {[%clk 0:17:28.8]} 23. Bh5 {[%clk 0:11:57.7]} 23... Be8 {[%clk 0:17:19.6]} 24. Rg1 {[%clk 0:10:17.2]} 24... a3+ {[%clk 0:13:30.3]} 25. Kb1 {[%clk 0:09:41.9]} 25... Rxg1+ {[%clk 0:12:30.7]} 26. Bxg1 {[%clk 0:09:41]} 26... Bh6 {[%clk 0:12:32.2]} 27. Rg2 {[%clk 0:09:34.3]} 27... d4 {[%clk 0:12:27.3]} 28. Rg8 {[%clk 0:08:41.1]} 28... Rd8 {[%clk 0:12:14.5]} 29. Rh8 {[%clk 0:07:29.6]} 29... Bf4 {[%clk 0:11:13]} 30. Rxh7 {[%clk 0:06:50.3]} 30... Bxe5 {[%clk 0:11:03.4]} 31. Bxf7 {[%clk 0:06:41.5]} 31... Rd7 {[%clk 0:10:39.1]} 32. Bg8 {[%clk 0:06:02.5]} 32... Bxf6 {[%clk 0:10:15.8]} 33. Rxd7+ {[%clk 0:05:45.3]} 33... Kxd7 {[%clk 0:10:13.2]} 34. Bh7 {[%clk 0:05:39.1]} 34... Kd6 {[%clk 0:10:03.8]} 35. Kc1 {[%clk 0:05:31.6]} 35... Bg5+ {[%clk 0:10:00.4]} 36. Kd1 {[%clk 0:05:17.4]} 36... Bh5+ {[%clk 0:10:00.4]} 37. Ke1 {[%clk 0:05:15.7]} 37... e5 {[%clk 0:09:17.4]} 38. Be4 {[%clk 0:04:56.9]} 38... Bf4 {[%clk 0:08:43.6]} 39. h3 {[%clk 0:04:41.3]} 39... Bg3+ {[%clk 0:08:21.1]} 40. Kd2 {[%clk 0:04:37]} 40... Ke7 {[%clk 0:07:50.9]} 41. Kd3 {[%clk 0:03:43.8]} 41... Bf7 {[%clk 0:07:45.8]} 42. Ke2 {[%clk 0:03:35.8]} 42... Be6 {[%clk 0:07:25.5]} 43. Kf3 {[%clk 0:03:16.7]} 43... Be1 {[%clk 0:07:01.3]} 44. Ke2 {[%clk 0:03:07.9]} 44... Bh4 {[%clk 0:06:56.2]} 45. Bg2 {[%clk 0:02:39.2]} 45... Bf5 {[%clk 0:06:52.1]} 46. Kd2 {[%clk 0:02:31.3]} 46... Bg3 {[%clk 0:06:34.7]} 47. Bf3 {[%clk 0:01:51.2]} 47... Bxh3 {[%clk 0:06:20]} 48. Kd3 {[%clk 0:01:50.7]} 48... Be6 {[%clk 0:06:00.2]} 49. Be4 {[%clk 0:01:29.8]} 49... Kf6 {[%clk 0:05:02]} 50. Ke2 {[%clk 0:01:08]} 50... Kg5 {[%clk 0:04:27.1]} 51. Kf3 {[%clk 0:01:01.7]} 51... Kh4 {[%clk 0:03:43]} 52. Bd3 {[%clk 0:00:38.4]} 52... Bd5+ {[%clk 0:02:51.5]} 53. Ke2 {[%clk 0:00:21.2]} 53... Kg4 {[%clk 0:02:27.4]} 54. Bc4 {[%clk 0:00:22.4]} 54... Be4 {[%clk 0:02:04.9]} 55. Bd3 {[%clk 0:00:22.4]} 55... Bf3+ {[%clk 0:02:04.7]} 56. Kd2 {[%clk 0:00:23.7]} 56... Bf4+ {[%clk 0:02:00.6]} 57. Ke1 {[%clk 0:00:25]} 57... e4 {[%clk 0:01:56.9]} 58. Be2 {[%clk 0:00:26]} 58... Bg3+ {[%clk 0:01:34.3]} 59. Kd1 {[%clk 0:00:23.6]} 59... e3 {[%clk 0:01:20.3]} 60. Bxf3+ {[%clk 0:00:21.2]} 60... Kxf3 {[%clk 0:01:22.2]} 61. Kc1 {[%clk 0:00:15.5]} 61... e2 {[%clk 0:01:18.1]} 62. Kd2 {[%clk 0:00:14.8]} 62... e1=Q+ {[%clk 0:01:16.4]} 63. Kd3 {[%clk 0:00:14.9]} 63... Qc3# {[%clk 0:01:18.3]} 0-1

[Event "Live Chess"]
[Site "Chess.com"]
[Date "2021.02.10"]
[Round "1"]
[White "josiwales"]
[Black "J3Chess24"]
[Result "1-0"]
[CurrentPosition "4N3/4k2P/p1n3p1/Pp6/2p5/2P1K3/1P6/8 b - -"]
[Timezone "UTC"]
[ECO "B10"]
[ECOUrl "https://www.chess.com/openings/Caro-Kann-Defense-Two-Knights-Attack-3...dxe4-4.Nxe4-Nf6"]
[UTCDate "2021.02.10"]
[UTCTime "02:30:31"]
[WhiteElo "2656"]
[BlackElo "1920"]
[TimeControl "2100+2"]
[Termination "josiwales won by resignation"]
[StartTime "02:30:31"]
[EndDate "2021.02.10"]
[EndTime "03:26:24"]
[Link "https://www.chess.com/live/game/6507731871"]

1. e4 {[%clk 0:34:58.5]} 1... c6 {[%clk 0:35:00.6]} 2. Nc3 {[%clk 0:34:55]} 2... d5 {[%clk 0:35:00.3]} 3. Nf3 {[%clk 0:34:56.9]} 3... dxe4 {[%clk 0:34:57.9]} 4. Nxe4 {[%clk 0:34:57.3]} 4... Nf6 {[%clk 0:34:56.4]} 5. Qe2 {[%clk 0:34:58.3]} 5... Nxe4 {[%clk 0:34:54.6]} 6. Qxe4 {[%clk 0:35:00.2]} 6... Qd5 {[%clk 0:34:55]} 7. Qf4 {[%clk 0:34:57.9]} 7... Qd6 {[%clk 0:34:44.5]} 8. d4 {[%clk 0:34:39.2]} 8... Qxf4 {[%clk 0:34:34.1]} 9. Bxf4 {[%clk 0:34:41.1]} 9... Bf5 {[%clk 0:34:33.2]} 10. O-O-O {[%clk 0:34:40.6]} 10... e6 {[%clk 0:34:30.6]} 11. Bc4 {[%clk 0:34:18.3]} 11... b5 {[%clk 0:34:18.8]} 12. Bb3 {[%clk 0:33:38.8]} 12... Nd7 {[%clk 0:34:09]} 13. Rhe1 {[%clk 0:33:37.6]} 13... Be7 {[%clk 0:34:04.2]} 14. h3 {[%clk 0:33:06.4]} 14... O-O-O {[%clk 0:33:30.8]} 15. a4 {[%clk 0:30:45.5]} 15... a6 {[%clk 0:33:17.1]} 16. c3 {[%clk 0:30:08.6]} 16... Kb7 {[%clk 0:32:11.3]} 17. a5 {[%clk 0:27:27.8]} 17... c5 {[%clk 0:29:39.8]} 18. Bd5+ {[%clk 0:25:57.8]} 18... Ka7 {[%clk 0:26:55]} 19. Bc6 {[%clk 0:24:05.8]} 19... Nb8 {[%clk 0:23:16.9]} 20. d5 {[%clk 0:23:02.8]} 20... Bd6 {[%clk 0:21:09.4]} 21. Bxd6 {[%clk 0:21:53.1]} 21... Rxd6 {[%clk 0:21:01.9]} 22. Ne5 {[%clk 0:21:53.9]} 22... Rf8 {[%clk 0:13:02.7]} 23. g4 {[%clk 0:20:29.8]} 23... exd5 {[%clk 0:10:32.9]} 24. Rxd5 {[%clk 0:20:00.6]} 24... Rxd5 {[%clk 0:10:15.4]} 25. Bxd5 {[%clk 0:20:02.5]} 25... Be6 {[%clk 0:10:02.1]} 26. Bxe6 {[%clk 0:19:50.3]} 26... fxe6 {[%clk 0:10:01.6]} 27. Nd3 {[%clk 0:19:39.6]} 27... c4 {[%clk 0:09:19.2]} 28. Nc5 {[%clk 0:19:38]} 28... Rxf2 {[%clk 0:08:50.4]} 29. Rxe6 {[%clk 0:19:36.6]} 29... Rf7 {[%clk 0:07:08.3]} 30. Rb6 {[%clk 0:19:36.6]} 30... Rc7 {[%clk 0:06:11.9]} 31. Ne6 {[%clk 0:19:31.1]} 31... Rf7 {[%clk 0:01:53.5]} 32. Nd4 {[%clk 0:19:23.1]} 32... Rf6 {[%clk 0:01:27.5]} 33. Re6 {[%clk 0:18:33.6]} 33... Rxe6 {[%clk 0:00:57.2]} 34. Nxe6 {[%clk 0:18:34]} 34... Kb7 {[%clk 0:00:16.3]} 35. Nxg7 {[%clk 0:18:29.7]} 35... Nd7 {[%clk 0:00:09.8]} 36. g5 {[%clk 0:18:22.6]} 36... Kc6 {[%clk 0:00:09.7]} 37. Kd2 {[%clk 0:18:13.3]} 37... Kd6 {[%clk 0:00:09.8]} 38. Ke3 {[%clk 0:18:04.3]} 38... Ke5 {[%clk 0:00:10.5]} 39. h4 {[%clk 0:17:59.4]} 39... Nb8 {[%clk 0:00:06.7]} 40. h5 {[%clk 0:17:59.6]} 40... Nc6 {[%clk 0:00:07.1]} 41. g6 {[%clk 0:17:23.3]} 41... hxg6 {[%clk 0:00:03.7]} 42. h6 {[%clk 0:17:24]} 42... Kf6 {[%clk 0:00:04.5]} 43. Ne8+ {[%clk 0:17:24.1]} 43... Ke7 {[%clk 0:00:03.7]} 44. h7 {[%clk 0:17:22.2]} 1-0

[Event "Live Chess"]
[Site "Chess.com"]
[Date "2021.02.10"]
[Round "1"]
[White "knvsback"]
[Black "Tirantes"]
[Result "0-1"]
[CurrentPosition "r4rk1/ppp3pp/1n1b2b1/8/6p1/2PP3P/PPB2q2/RNBQR1K1 w - -"]
[Timezone "UTC"]
[ECO "C55"]
[ECOUrl "https://www.chess.com/openings/Italian-Game-Two-Knights-Modern-Bishops-Opening"]
[UTCDate "2021.02.10"]
[UTCTime "02:30:43"]
[WhiteElo "1730"]
[BlackElo "2452"]
[TimeControl "2100+2"]
[Termination "Tirantes won by resignation"]
[StartTime "02:30:43"]
[EndDate "2021.02.10"]
[EndTime "03:04:27"]
[Link "https://www.chess.com/live/game/6507732019"]

1. e4 {[%clk 0:34:55.8]} 1... e5 {[%clk 0:34:45.9]} 2. Nf3 {[%clk 0:34:52.7]} 2... Nc6 {[%clk 0:34:39.1]} 3. Bc4 {[%clk 0:34:50.8]} 3... Nf6 {[%clk 0:34:27.8]} 4. d3 {[%clk 0:34:48.5]} 4... Be7 {[%clk 0:34:16.6]} 5. c3 {[%clk 0:34:35.7]} 5... O-O {[%clk 0:34:08.9]} 6. O-O {[%clk 0:34:25]} 6... d5 {[%clk 0:32:28.9]} 7. exd5 {[%clk 0:34:18.4]} 7... Nxd5 {[%clk 0:32:25.8]} 8. Re1 {[%clk 0:33:16.7]} 8... Bg4 {[%clk 0:30:56.7]} 9. Bb3 {[%clk 0:29:46.3]} 9... Nb6 {[%clk 0:29:28.3]} 10. h3 {[%clk 0:27:35.5]} 10... Bh5 {[%clk 0:28:52.3]} 11. g4 {[%clk 0:22:07.3]} 11... Bg6 {[%clk 0:28:41.6]} 12. Bc2 {[%clk 0:21:56.1]} 12... f5 {[%clk 0:24:27.5]} 13. Nxe5 {[%clk 0:19:37.6]} 13... Nxe5 {[%clk 0:23:54.5]} 14. Rxe5 {[%clk 0:19:31.2]} 14... Bd6 {[%clk 0:23:15.9]} 15. Re1 {[%clk 0:18:19.7]} 15... Qh4 {[%clk 0:22:24.2]} 16. Re3 {[%clk 0:16:48.2]} 16... fxg4 {[%clk 0:21:14.8]} 17. Re1 {[%clk 0:16:50.1]} 17... Qxf2+ {[%clk 0:20:51.8]} 0-1

[Event "Live Chess"]
[Site "Chess.com"]
[Date "2021.02.10"]
[Round "1"]
[White "kingandqueen2017"]
[Black "A-boy415"]
[Result "1-0"]
[CurrentPosition "6k1/5pp1/2N4p/1Q2P1q1/1p6/n4N2/5PPP/4R1K1 b - -"]
[Timezone "UTC"]
[ECO "C55"]
[ECOUrl "https://www.chess.com/openings/Italian-Game-Two-Knights-Modern-Bishops-Opening"]
[UTCDate "2021.02.10"]
[UTCTime "02:30:38"]
[WhiteElo "2065"]
[BlackElo "1823"]
[TimeControl "2100+2"]
[Termination "kingandqueen2017 won by resignation"]
[StartTime "02:30:38"]
[EndDate "2021.02.10"]
[EndTime "03:07:31"]
[Link "https://www.chess.com/live/game/6507732151"]

1. e4 {[%clk 0:35:00.9]} 1... e5 {[%clk 0:34:42.1]} 2. Nf3 {[%clk 0:34:58.7]} 2... Nc6 {[%clk 0:34:41.1]} 3. Bc4 {[%clk 0:34:52.3]} 3... Nf6 {[%clk 0:34:39.3]} 4. d3 {[%clk 0:34:44.7]} 4... Be7 {[%clk 0:34:35.6]} 5. O-O {[%clk 0:34:42.5]} 5... d6 {[%clk 0:34:35.3]} 6. c3 {[%clk 0:34:29.6]} 6... a6 {[%clk 0:34:24.3]} 7. Bb3 {[%clk 0:34:17]} 7... O-O {[%clk 0:34:18.5]} 8. Nbd2 {[%clk 0:34:08.7]} 8... Be6 {[%clk 0:34:08.6]} 9. Re1 {[%clk 0:34:00.4]} 9... Bxb3 {[%clk 0:34:05.4]} 10. Qxb3 {[%clk 0:33:53.2]} 10... b5 {[%clk 0:34:00.8]} 11. a4 {[%clk 0:33:15.3]} 11... Na5 {[%clk 0:33:53.1]} 12. Qc2 {[%clk 0:32:38.6]} 12... c5 {[%clk 0:33:38.6]} 13. axb5 {[%clk 0:30:28]} 13... axb5 {[%clk 0:33:36.9]} 14. Nf1 {[%clk 0:30:24]} 14... Qc7 {[%clk 0:32:38.6]} 15. Bg5 {[%clk 0:29:43.7]} 15... h6 {[%clk 0:32:15.2]} 16. Bxf6 {[%clk 0:29:35.3]} 16... Bxf6 {[%clk 0:32:15.6]} 17. Ne3 {[%clk 0:29:31.8]} 17... Bd8 {[%clk 0:30:58.9]} 18. Nd5 {[%clk 0:29:21.5]} 18... Qd7 {[%clk 0:30:55.1]} 19. b4 {[%clk 0:26:51.9]} 19... cxb4 {[%clk 0:30:54.7]} 20. Nxb4 {[%clk 0:25:06.9]} 20... Bb6 {[%clk 0:29:59.6]} 21. Nd5 {[%clk 0:24:41.2]} 21... Bc5 {[%clk 0:29:59.1]} 22. d4 {[%clk 0:24:32.9]} 22... Nc4 {[%clk 0:28:02]} 23. dxc5 {[%clk 0:24:23.4]} 23... dxc5 {[%clk 0:27:43.3]} 24. Rxa8 {[%clk 0:23:47.2]} 24... Rxa8 {[%clk 0:27:42.7]} 25. Ne3 {[%clk 0:22:49.3]} 25... Na3 {[%clk 0:26:25.3]} 26. Qa2 {[%clk 0:22:31.1]} 26... Ra4 {[%clk 0:25:28.6]} 27. Nxe5 {[%clk 0:21:57.1]} 27... Qe7 {[%clk 0:25:00.3]} 28. Qd5 {[%clk 0:21:46.4]} 28... b4 {[%clk 0:24:33.9]} 29. cxb4 {[%clk 0:21:09]} 29... cxb4 {[%clk 0:24:29]} 30. Nf5 {[%clk 0:20:31.8]} 30... Qf6 {[%clk 0:24:14.4]} 31. Nd4 {[%clk 0:18:37.1]} 31... Ra6 {[%clk 0:23:29]} 32. Nec6 {[%clk 0:16:13.2]} 32... Rb6 {[%clk 0:22:45]} 33. e5 {[%clk 0:15:52.2]} 33... Qg5 {[%clk 0:22:16.8]} 34. Nf3 {[%clk 0:15:34.9]} 34... Rb5 {[%clk 0:20:42.3]} 35. Qxb5 {[%clk 0:15:28.8]} 1-0

[Event "Live Chess"]
[Site "Chess.com"]
[Date "2021.02.10"]
[Round "1"]
[White "dashrndrx"]
[Black "ecwinslow"]
[Result "0-1"]
[CurrentPosition "4rk2/pp4b1/8/3p4/3P1PR1/2PK2Q1/4q1b1/7R w - -"]
[Timezone "UTC"]
[ECO "A27"]
[ECOUrl "https://www.chess.com/openings/English-Opening-Reversed-Sicilian-Three-Knights-System-3...f5-4.d4-e4"]
[UTCDate "2021.02.10"]
[UTCTime "02:30:41"]
[WhiteElo "1805"]
[BlackElo "2253"]
[TimeControl "2100+2"]
[Termination "ecwinslow won by checkmate"]
[StartTime "02:30:41"]
[EndDate "2021.02.10"]
[EndTime "03:32:31"]
[Link "https://www.chess.com/live/game/6507732274"]

1. c4 {[%clk 0:34:57.3]} 1... e5 {[%clk 0:34:34.3]} 2. Nc3 {[%clk 0:34:55.4]} 2... Nc6 {[%clk 0:34:15.7]} 3. Nf3 {[%clk 0:34:55.2]} 3... f5 {[%clk 0:34:02]} 4. d4 {[%clk 0:33:20]} 4... e4 {[%clk 0:33:47.4]} 5. Bg5 {[%clk 0:32:25.2]} 5... Nce7 {[%clk 0:32:20.5]} 6. Nh4 {[%clk 0:30:58.1]} 6... h6 {[%clk 0:31:21]} 7. Ng6 {[%clk 0:29:09.8]} 7... hxg5 {[%clk 0:31:05]} 8. Nxh8 {[%clk 0:29:01.2]} 8... g6 {[%clk 0:30:07.1]} 9. h4 {[%clk 0:28:05.8]} 9... g4 {[%clk 0:29:31.5]} 10. h5 {[%clk 0:28:02.5]} 10... gxh5 {[%clk 0:29:09.1]} 11. Rxh5 {[%clk 0:27:56.2]} 11... Nf6 {[%clk 0:29:07.7]} 12. Rh1 {[%clk 0:26:18.4]} 12... e3 {[%clk 0:23:28.7]} 13. Qc1 {[%clk 0:22:51.1]} 13... f4 {[%clk 0:23:03.2]} 14. fxe3 {[%clk 0:22:37]} 14... d5 {[%clk 0:21:57.3]} 15. exf4 {[%clk 0:22:28.3]} 15... Bf5 {[%clk 0:21:20.6]} 16. e3 {[%clk 0:19:46.3]} 16... Bg7 {[%clk 0:20:10.4]} 17. cxd5 {[%clk 0:19:29.2]} 17... Nexd5 {[%clk 0:19:25.4]} 18. Bc4 {[%clk 0:18:38.6]} 18... c6 {[%clk 0:18:21.2]} 19. e4 {[%clk 0:14:22.7]} 19... Nxe4 {[%clk 0:17:35.8]} 20. Rh5 {[%clk 0:12:07.6]} 20... Nexc3 {[%clk 0:13:17.6]} 21. bxc3 {[%clk 0:08:31.5]} 21... Qf6 {[%clk 0:11:57.2]} 22. Bxd5 {[%clk 0:08:12.7]} 22... cxd5 {[%clk 0:11:40.9]} 23. Qe3+ {[%clk 0:07:50]} 23... Kf8 {[%clk 0:10:37.7]} 24. Kd2 {[%clk 0:07:36.5]} 24... Re8 {[%clk 0:10:10.5]} 25. Qf2 {[%clk 0:06:28.3]} 25... Bxh8 {[%clk 0:09:38.9]} 26. Rah1 {[%clk 0:06:22.2]} 26... Bg7 {[%clk 0:09:19]} 27. Rg5 {[%clk 0:06:02.4]} 27... Be4 {[%clk 0:07:39.6]} 28. Rxg4 {[%clk 0:05:07.4]} 28... Qa6 {[%clk 0:06:47]} 29. Qg3 {[%clk 0:04:43.8]} 29... Qxa2+ {[%clk 0:06:37.3]} 30. Ke3 {[%clk 0:04:42.2]} 30... Bxg2+ {[%clk 0:06:17.4]} 31. Kd3 {[%clk 0:04:16.1]} 31... Qe2# {[%clk 0:06:14.2]} 0-1